[Event "4th EFE Metz Festival-WIM"]
[Site "Metz"]
[Date "2018.07.25"]
[Round "4"]
[White "Muetsch, Annmarie"]
[Black "Broly, Mathilde"]
[Result "1-0"]
[ECO "C54"]
[WhiteElo "2146"]
[BlackElo "2149"]
[Annotator "NA"]
[PlyCount "113"]
[EventDate "2018.07.22"]
[EventType "tourn"]
[EventCountry "FRA"]
[SourceTitle "playchess.com"]
[Source "ChessBase"]
[SourceQuality "1"]
[TimeControl "5400+30"]

1. e4 {[%emt 0:00:00]} e5 {[%emt 0:00:09]} 2. Nf3 {[%emt 0:00:00]} Nc6 {[%emt 0:00:13]} 3. Bc4 {[%emt 0:00:00]} Bc5 {[%emt 0:00:36]} 4. c3 {[%emt 0:00:09]} Nf6 {[%emt 0:00:06]} 5. d3 {[%emt 0:00:05]} O-O {[%emt 0:00:09]} 6. a4 {[%emt 0:00:53]} d5 {[%emt 0:09:51]} 7. exd5 {[%emt 0:00:08]} Nxd5 {[%emt 0:00:05]} 8. a5 {[%emt 0:00:22]} Nf4 {[%emt 0:06:26]} 9. O-O {[%emt 0:06:15]} Qf6 {[%emt 0:12:20]} 10. Be3 {[%emt 0:12:01]} Bd6 {[%emt 0:05:16]} 11. Nbd2 {[%emt 0:04:21]} Bf5 {[%emt 0:09:00]} 12. Bxf4 {[%emt 0:04:13]} exf4 {[%emt 0:00:11]} 13. a6 {[%emt 0:01:49]} Bc8 {[%emt 0:12:29]} 14. Bd5 {[%emt 0:11:19]} Nd8 {[%emt 0:01:58]} 15. axb7 {[%emt 0:00:40]} Bxb7 {[%emt 0:01:29]} 16. Bxb7 {[%emt 0:01:42]} Nxb7 {[%emt 0:00:08]} 17. d4 {[%emt 0:03:19]} Qf5 {[%emt 0:09:09]} 18. Qe2 {[%emt 0:04:51]} h6 {[%emt 0:03:12]} 19. Ra6 {[%emt 0:03:04]} Rfe8 {[%emt 0:06:27]} 20. Qc4 {[%emt 0:01:08]} Nd8 {[%emt 0:01:29]} 21. Qa4 {[%emt 0:05:30]} Ne6 {[%emt 0:01:40]} 22. Ra5 {[%emt 0:03:42]} Qg6 {[%emt 0:01:17]} 23. Rxa7 {[%emt 0:02:02]} Rxa7 {[%emt 0:00:54]} 24. Qxe8+ {[%emt 0:02:22]} Kh7 {[%emt 0:00:04]} 25. h4 {[%emt 0:04:52]} Qf5 {[%emt 0:01:47]} 26. b4 {[%emt 0:05:28]} g5 {[%emt 0:03:18]} 27. d5 {[%emt 0:00:35]} Ng7 {[%emt 0:00:22]} 28. Qe4 {[%emt 0:01:02]} Kg6 {[%emt 0:00:33]} 29. hxg5 {[%emt 0:02:04]} hxg5 {[%emt 0:00:21]} 30. Nxg5 {[%emt 0:03:28]} Be5 {[%emt 0:03:28]} 31. Ndf3 {[%emt 0:01:19]} Qxe4 {[%emt 0:00:15]} 32. Nxe4 {[%emt 0:00:05]} f6 {[%emt 0:00:43]} 33. c4 {[%emt 0:03:06]} Ra4 {[%emt 0:01:27]} 34. Rb1 {[%emt 0:00:35]} Kf5 {[%emt 0:01:38]} 35. Nfd2 {[%emt 0:02:02]} Ra2 {[%emt 0:01:32]} 36. Kf1 {[%emt 0:01:14]} Ne8 {[%emt 0:01:52]} 37. Ke2 {[%emt 0:00:38]} Nd6 {[%emt 0:01:27]} 38. Nxd6+ {[%emt 0:00:18]} Bxd6 {[%emt 0:00:14]} 39. c5 {[%emt 0:00:45]} Bf8 {[%emt 0:00:20]} 40. Kd3 {[%emt 0:00:51]} Ra8 {[%emt 0:01:21]} 41. Re1 {[%emt 0:01:47]} Kg6 {[%emt 0:00:48]} 42. Kc4 {[%emt 0:00:57]} Ra2 {[%emt 0:00:15]} 43. Rd1 {[%emt 0:00:31]} Kf7 {[%emt 0:00:25]} 44. Kb3 {[%emt 0:00:17]} Ra8 {[%emt 0:00:09]} 45. Nc4 {[%emt 0:00:41]} Rd8 {[%emt 0:01:24]} 46. d6 {[%emt 0:00:54]} cxd6 {[%emt 0:00:42]} 47. Nxd6+ {[%emt 0:00:04]} Ke6 {[%emt 0:00:25]} 48. Kc4 {[%emt 0:00:17]} Ra8 {[%emt 0:00:15]} 49. Ne4 {[%emt 0:00:46]} f5 {[%emt 0:01:00]} 50. Nc3 {[%emt 0:00:14]} Bg7 {[%emt 0:00:10]} 51. b5 {[%emt 0:02:34]} Ra3 {[%emt 0:01:05]} 52. Nd5 {[%emt 0:02:14]} Ra4+ {[%emt 0:01:00]} 53. Nb4 {[%emt 0:00:25]} Bf8 {[%emt 0:00:21]} 54. Re1+ {[%emt 0:02:16]} Kd7 {[%emt 0:01:00]} 55. b6 {[%emt 0:00:26]} Ra5 {[%emt 0:00:58]} 56. c6+ {[%emt 0:00:31]} Kd8 {[%emt 0:00:41]} 57. c7+ {[%emt 0:00:23]} 1-0

[Event "4th EFE Metz Festival-WIM"]
[Site "Metz"]
[Date "2018.07.25"]
[Round "4"]
[White "Soubirou, Oriane"]
[Black "Thomas, Anysia"]
[Result "0-1"]
[ECO "A00"]
[WhiteElo "2105"]
[BlackElo "2156"]
[Annotator "NA"]
[PlyCount "106"]
[EventDate "2018.07.22"]
[EventType "tourn"]
[EventCountry "FRA"]
[SourceTitle "playchess.com"]
[Source "ChessBase"]
[SourceQuality "1"]
[TimeControl "5400+30"]

1. g4 {[%emt 0:01:09]} d5 {[%emt 0:01:27]} 2. Bg2 {[%emt 0:01:18]} Bxg4 {[%emt 0:06:21]} 3. c4 {[%emt 0:01:37]} dxc4 {[%emt 0:00:22]} 4. Bxb7 {[%emt 0:02:41]} Nd7 {[%emt 0:00:15]} 5. Nc3 {[%emt 0:07:12]} Rb8 {[%emt 0:01:49]} 6. Bd5 {[%emt 0:02:07]} e6 {[%emt 0:05:14]} 7. Bxc4 {[%emt 0:03:10]} Rb4 {[%emt 0:02:26]} 8. d3 {[%emt 0:03:05]} Ne5 {[%emt 0:13:53]} 9. a3 {[%emt 0:03:38]} Rb6 {[%emt 0:03:41]} 10. Qa4+ {[%emt 0:14:37]} Qd7 {[%emt 0:06:34]} 11. Qxd7+ {[%emt 0:14:18]} Kxd7 {[%emt 0:01:34]} 12. Bb5+ {[%emt 0:01:37]} c6 {[%emt 0:00:50]} 13. Ba4 {[%emt 0:00:07]} Nf6 {[%emt 0:01:28]} 14. b4 {[%emt 0:02:26]} Nd5 {[%emt 0:08:05]} 15. Bd2 {[%emt 0:01:38]} Nxc3 {[%emt 0:05:42]} 16. Bxc3 {[%emt 0:00:07]} Bd6 {[%emt 0:01:24]} 17. Bc2 {[%emt 0:08:47]} f6 {[%emt 0:03:29]} 18. h4 {[%emt 0:02:42]} h5 {[%emt 0:03:57]} 19. d4 {[%emt 0:03:59]} Nf7 {[%emt 0:02:42]} 20. f3 {[%emt 0:02:08]} Bf5 {[%emt 0:00:32]} 21. e4 {[%emt 0:00:11]} Bh7 {[%emt 0:00:56]} 22. Ne2 {[%emt 0:00:22]} Rbb8 {[%emt 0:06:05]} 23. Kf2 {[%emt 0:02:39]} g5 {[%emt 0:03:15]} 24. hxg5 {[%emt 0:01:59]} Nxg5 {[%emt 0:00:37]} 25. d5 {[%emt 0:09:24]} exd5 {[%emt 0:15:11]} 26. Bxf6 {[%emt 0:01:06]} Rhg8 {[%emt 0:00:04]} 27. Rxh5 {[%emt 0:01:10]} dxe4 {[%emt 0:00:24]} 28. Ba4 {[%emt 0:06:46]} exf3 {[%emt 0:03:22]} 29. Bxg5 {[%emt 0:00:50]} Bg6 {[%emt 0:00:19]} 30. Rh6 {[%emt 0:01:12]} fxe2 {[%emt 0:00:12]} 31. Kxe2 {[%emt 0:00:26]} Rbe8+ {[%emt 0:00:43]} 32. Kd2 {[%emt 0:00:15]} Re5 {[%emt 0:00:59]} 33. Be3 {[%emt 0:00:43]} Rd5+ {[%emt 0:00:23]} 34. Kc1 {[%emt 0:00:39]} Rd3 {[%emt 0:01:30]} 35. Bc2 {[%emt 0:00:48]} Rxe3 {[%emt 0:01:05]} 36. Kd2 {[%emt 0:00:20]} Rg3 {[%emt 0:00:30]} 37. Rxg6 {[%emt 0:00:35]} R8xg6 {[%emt 0:00:14]} 38. Bxg6 {[%emt 0:00:05]} Rxg6 {[%emt 0:00:03]} 39. Kd3 {[%emt 0:00:20]} Rg4 {[%emt 0:00:17]} 40. Kc2 {[%emt 0:00:34]} Rg3 {[%emt 0:00:21]} 41. Rh1 {[%emt 0:00:52]} Rxa3 {[%emt 0:00:15]} 42. Rh7+ {[%emt 0:00:05]} Ke6 {[%emt 0:00:41]} 43. Kb2 {[%emt 0:00:39]} Bxb4 {[%emt 0:00:34]} 44. Rb7 {[%emt 0:00:22]} c5 {[%emt 0:00:12]} 45. Rh7 {[%emt 0:00:12]} a5 {[%emt 0:00:13]} 46. Rh6+ {[%emt 0:00:12]} Kd5 {[%emt 0:00:06]} 47. Rh5+ {[%emt 0:00:06]} Kc4 {[%emt 0:00:10]} 48. Rh4+ {[%emt 0:00:04]} Kb5 {[%emt 0:00:10]} 49. Kc2 {[%emt 0:00:12]} a4 {[%emt 0:00:18]} 50. Kb1 {[%emt 0:00:14]} Rd3 {[%emt 0:00:22]} 51. Ka2 {[%emt 0:00:18]} Rd2+ {[%emt 0:00:10]} 52. Kb1 {[%emt 0:00:11]} a3 {[%emt 0:00:14]} 53. Rh3 {[%emt 0:00:05]} Kc4 {[%emt 0:01:02]} 0-1

[Event "4th EFE Metz Festival-WIM"]
[Site "Metz"]
[Date "2018.07.25"]
[Round "4"]
[White "Schweitzer, Victoria"]
[Black "Terbe, Julianna"]
[Result "1/2-1/2"]
[ECO "B31"]
[WhiteElo "2097"]
[BlackElo "2238"]
[Annotator "NA"]
[PlyCount "119"]
[EventDate "2018.07.22"]
[EventType "tourn"]
[EventCountry "FRA"]
[SourceTitle "playchess.com"]
[Source "ChessBase"]
[SourceQuality "1"]
[TimeControl "5400+30"]

1. e4 {[%emt 0:00:00]} c5 {[%emt 0:00:00]} 2. Nf3 {[%emt 0:00:00]} Nc6 {[%emt 0:00:00]} 3. Bb5 {[%emt 0:00:00]} g6 {[%emt 0:00:00]} 4. Bxc6 {[%emt 0:00:04]} bxc6 {[%emt 0:00:06]} 5. O-O {[%emt 0:00:15]} Bg7 {[%emt 0:00:06]} 6. Re1 {[%emt 0:00:12]} Nf6 {[%emt 0:00:08]} 7. e5 {[%emt 0:00:39]} Nd5 {[%emt 0:00:05]} 8. c4 {[%emt 0:00:35]} Nc7 {[%emt 0:00:04]} 9. d4 {[%emt 0:01:24]} cxd4 {[%emt 0:01:25]} 10. Qxd4 {[%emt 0:00:01]} Ne6 {[%emt 0:00:08]} 11. Qh4 {[%emt 0:01:16]} d6 {[%emt 0:00:12]} 12. Rd1 {[%emt 0:51:07]} Qb6 {[%emt 0:23:37]} 13. exd6 {[%emt 0:00:44]} Bf6 {[%emt 0:05:07]} 14. Qe4 {[%emt 0:01:26]} O-O {[%emt 0:01:58]} 15. dxe7 {[%emt 0:01:42]} Bxe7 {[%emt 0:04:34]} 16. Nc3 {[%emt 0:00:21]} Bf6 {[%emt 0:02:39]} 17. Qe2 {[%emt 0:04:53]} Ba6 {[%emt 0:01:57]} 18. Be3 {[%emt 0:01:51]} Qb4 {[%emt 0:00:27]} 19. Ne4 {[%emt 0:05:31]} Bg7 {[%emt 0:06:46]} 20. Rac1 {[%emt 0:09:01]} Qxb2 {[%emt 0:01:01]} 21. Rc2 {[%emt 0:00:06]} Qb4 {[%emt 0:03:58]} 22. h4 {[%emt 0:01:26]} Rfd8 {[%emt 0:04:58]} 23. Rdc1 {[%emt 0:00:59]} c5 {[%emt 0:04:00]} 24. Nfg5 {[%emt 0:04:05]} Nd4 {[%emt 0:02:21]} 25. Bxd4 {[%emt 0:00:22]} cxd4 {[%emt 0:01:07]} 26. a3 {[%emt 0:02:29]} Qxa3 {[%emt 0:03:56]} 27. Qd2 {[%emt 0:00:11]} Qe7 {[%emt 0:01:01]} 28. Re1 {[%emt 0:00:31]} Rac8 {[%emt 0:05:42]} 29. Nxh7 {[%emt 0:00:31]} Qxh4 {[%emt 0:00:36]} 30. Nhg5 {[%emt 0:01:18]} Bb7 {[%emt 0:06:56]} 31. g3 {[%emt 0:00:15]} Qg4 {[%emt 0:01:03]} 32. f3 {[%emt 0:00:28]} Qf5 {[%emt 0:04:31]} 33. Qh2 {[%emt 0:02:00]} Bxe4 {[%emt 0:00:47]} 34. Qh7+ {[%emt 0:00:27]} Kf8 {[%emt 0:00:01]} 35. Nxe4 {[%emt 0:01:28]} d3 {[%emt 0:00:57]} 36. Rf2 {[%emt 0:02:56]} Rxc4 {[%emt 0:01:59]} 37. Qh4 {[%emt 0:01:50]} Rcd4 {[%emt 0:01:18]} 38. g4 {[%emt 0:00:33]} Qf4 {[%emt 0:01:20]} 39. Nd2 {[%emt 0:01:58]} Bf6 {[%emt 0:01:28]} 40. Qh7 {[%emt 0:00:21]} Qg3+ {[%emt 0:00:14]} 41. Kf1 {[%emt 0:00:27]} Qh4 {[%emt 0:00:16]} 42. Rh2 {[%emt 0:00:05]} Qxh7 {[%emt 0:00:06]} 43. Rxh7 {[%emt 0:00:01]} a5 {[%emt 0:00:59]} 44. Ne4 {[%emt 0:00:32]} d2 {[%emt 0:03:20]} 45. Rd1 {[%emt 0:00:12]} Rxe4 {[%emt 0:00:46]} 46. fxe4 {[%emt 0:00:09]} a4 {[%emt 0:00:09]} 47. Rh2 {[%emt 0:02:37]} Bc3 {[%emt 0:00:18]} 48. Ke2 {[%emt 0:00:25]} a3 {[%emt 0:00:08]} 49. Rh3 {[%emt 0:00:39]} Bb2 {[%emt 0:00:32]} 50. Rb3 {[%emt 0:00:42]} Bc1 {[%emt 0:00:21]} 51. Rb7 {[%emt 0:00:38]} Ke8 {[%emt 0:02:58]} 52. Rf1 {[%emt 0:00:39]} Bb2 {[%emt 0:01:30]} 53. Ra7 {[%emt 0:00:32]} Rd7 {[%emt 0:01:50]} 54. Rxd7 {[%emt 0:00:27]} Kxd7 {[%emt 0:00:01]} 55. Rxf7+ {[%emt 0:00:01]} Ke6 {[%emt 0:02:07]} 56. Ra7 {[%emt 0:00:02]} Bc1 {[%emt 0:00:06]} 57. Ra5 {[%emt 0:00:23]} Kf6 {[%emt 0:00:30]} 58. Kd1 {[%emt 0:00:01]} Ke6 {[%emt 0:00:18]} 59. Kc2 {[%emt 0:00:05]} Kf6 {[%emt 0:00:16]} 60. Kd1 {[%emt 0:00:57] Ke5} 1/2-1/2

[Event "4th EFE Metz Festival-WIM"]
[Site "Metz"]
[Date "2018.07.25"]
[Round "4"]
[White "Schweitzer, Victoria"]
[Black "Gatineau, Yovann"]
[Result "*"]
[ECO "B31"]
[WhiteElo "2097"]
[BlackElo "2373"]
[Annotator "NA"]
[PlyCount "36"]
[EventDate "2018.07.22"]
[EventType "tourn"]
[EventCountry "FRA"]
[SourceTitle "playchess.com"]
[Source "ChessBase"]
[SourceQuality "1"]
[TimeControl "5400+30"]

1. e4 {[%emt 0:00:00]} c5 {[%emt 0:00:00]} 2. Nf3 {[%emt 0:00:00]} Nc6 {[%emt 0:00:00]} 3. Bb5 {[%emt 0:00:00]} g6 {[%emt 0:00:00]} 4. Bxc6 {[%emt 0:00:04]} bxc6 {[%emt 0:00:06]} 5. O-O {[%emt 0:00:15]} Bg7 {[%emt 0:00:06]} 6. Re1 {[%emt 0:00:12]} Nf6 {[%emt 0:00:08]} 7. e5 {[%emt 0:00:39]} Nd5 {[%emt 0:00:05]} 8. c4 {[%emt 0:00:35]} Nc7 {[%emt 0:00:04]} 9. d4 {[%emt 0:01:24]} cxd4 {[%emt 0:01:25]} 10. Qxd4 {[%emt 0:00:01]} Ne6 {[%emt 0:00:08]} 11. Qh4 {[%emt 0:01:16]} d6 {[%emt 0:00:12]} 12. Rd1 {[%emt 0:51:07]} Qb6 {[%emt 0:23:37]} 13. exd6 {[%emt 0:00:44]} Bf6 {[%emt 0:05:07]} 14. Qe4 {[%emt 0:01:26]} O-O {[%emt 0:01:58]} 15. dxe7 {[%emt 0:01:42]} Bxe7 {[%emt 0:04:34]} 16. Nc3 {[%emt 0:00:21]} Bf6 {[%emt 0:02:39]} 17. Qe2 {[%emt 0:04:53]} Ba6 {[%emt 0:01:57]} 18. Be3 {[%emt 0:01:51]} Qb4 {[%emt 0:00:27]} *

[Event "4th EFE Metz Festival-WIM"]
[Site "Metz"]
[Date "2018.07.25"]
[Round "4"]
[White "Afraoui, Anaelle"]
[Black "Terbe, Zsuzsanna"]
[Result "1/2-1/2"]
[ECO "C45"]
[WhiteElo "2056"]
[BlackElo "2178"]
[Annotator "NA"]
[PlyCount "62"]
[EventDate "2018.07.22"]
[EventType "tourn"]
[EventCountry "FRA"]
[SourceTitle "playchess.com"]
[Source "ChessBase"]
[SourceQuality "1"]
[TimeControl "5400+30"]

1. e4 {[%emt 0:00:00]} e5 {[%emt 0:00:00]} 2. Nf3 {[%emt 0:00:00]} Nc6 {[%emt 0:00:00]} 3. d4 {[%emt 0:05:19]} exd4 {[%emt 0:00:00]} 4. Nxd4 {[%emt 0:00:06]} Nf6 {[%emt 0:00:05]} 5. Nxc6 {[%emt 0:00:10]} bxc6 {[%emt 0:00:08]} 6. e5 {[%emt 0:00:12]} Qe7 {[%emt 0:00:30]} 7. Qe2 {[%emt 0:00:08]} Nd5 {[%emt 0:00:17]} 8. c4 {[%emt 0:00:14]} Nb6 {[%emt 0:00:10]} 9. Nc3 {[%emt 0:01:15]} Qe6 {[%emt 0:00:19]} 10. Qe4 {[%emt 0:00:48]} g6 {[%emt 0:00:22]} 11. f4 {[%emt 0:03:40]} d5 {[%emt 0:02:19]} 12. exd6 {[%emt 0:07:16]} cxd6 {[%emt 0:03:01]} 13. Be2 {[%emt 0:07:07]} Bg7 {[%emt 0:11:27]} 14. Bd2 {[%emt 0:13:43]} O-O {[%emt 0:03:45]} 15. Qxe6 {[%emt 0:08:06]} Bxe6 {[%emt 0:00:34]} 16. b3 {[%emt 0:01:10]} d5 {[%emt 0:00:59]} 17. cxd5 {[%emt 0:05:14]} cxd5 {[%emt 0:00:08]} 18. Rc1 {[%emt 0:02:31]} Bf5 {[%emt 0:22:44]} 19. O-O {[%emt 0:05:01]} Rfe8 {[%emt 0:04:21]} 20. Bf3 {[%emt 0:06:57]} Rad8 {[%emt 0:03:25]} 21. Rfe1 {[%emt 0:04:53]} Bf6 {[%emt 0:05:29]} 22. Nb5 {[%emt 0:04:26]} Rxe1+ {[%emt 0:04:51]} 23. Rxe1 {[%emt 0:01:59]} Bd3 {[%emt 0:00:19]} 24. Nc3 {[%emt 0:03:06]} h5 {[%emt 0:06:37]} 25. a4 {[%emt 0:01:53]} d4 {[%emt 0:02:45]} 26. Ne4 {[%emt 0:03:25]} Bg7 {[%emt 0:00:56]} 27. Nc5 {[%emt 0:00:46]} Bc2 {[%emt 0:00:51]} 28. a5 {[%emt 0:05:11]} Nd5 {[%emt 0:02:01]} 29. Nb7 {[%emt 0:00:27]} Rd7 {[%emt 0:00:54]} 30. Nc5 {[%emt 0:00:06]} Rd8 {[%emt 0:07:23]} 31. Nb7 {[%emt 0:00:28]} Rd7 1/2-1/2

[Event "4th EFE Metz Festival-WIM"]
[Site "Metz"]
[Date "2018.07.26"]
[Round "5"]
[White "Zozulia, Anna"]
[Black "Schweitzer, Victoria"]
[Result "1-0"]
[ECO "B09"]
[WhiteElo "2300"]
[BlackElo "2097"]
[Annotator "NA"]
[PlyCount "111"]
[EventDate "2018.07.22"]
[EventType "tourn"]
[EventCountry "FRA"]
[SourceTitle "playchess.com"]
[Source "ChessBase"]
[SourceQuality "1"]
[TimeControl "5400+30"]

1. e4 {[%emt 0:00:00]} d6 {[%emt 0:00:08]} 2. d4 {[%emt 0:00:00]} Nf6 {[%emt 0:00:08]} 3. Nc3 {[%emt 0:00:28]} g6 {[%emt 0:00:08]} 4. f4 {[%emt 0:00:35]} Bg7 {[%emt 0:00:07]} 5. Nf3 {[%emt 0:00:00]} O-O {[%emt 0:00:00]} 6. Bd3 {[%emt 0:00:44]} Nc6 {[%emt 0:00:00]} 7. d5 {[%emt 0:01:53]} Nb4 {[%emt 0:00:29]} 8. Be2 {[%emt 0:04:22]} c6 {[%emt 0:05:54]} 9. a3 {[%emt 0:08:29]} Na6 {[%emt 0:00:27]} 10. Be3 {[%emt 0:28:24]} cxd5 {[%emt 0:06:35]} 11. exd5 {[%emt 0:00:15]} Nc5 {[%emt 0:05:36]} 12. O-O {[%emt 0:00:39]} Bg4 {[%emt 0:08:48]} 13. Nd4 {[%emt 0:08:05]} Qc8 {[%emt 0:03:32]} 14. Kh1 {[%emt 0:07:01]} Bxe2 {[%emt 0:03:53]} 15. Qxe2 {[%emt 0:00:10]} Ncd7 {[%emt 0:02:16]} 16. Bg1 {[%emt 0:06:54]} Re8 {[%emt 0:00:18]} 17. Qd3 {[%emt 0:01:10]} a6 {[%emt 0:02:42]} 18. Rae1 {[%emt 0:02:07]} Qc7 {[%emt 0:00:34]} 19. Nf3 {[%emt 0:05:44]} Rac8 {[%emt 0:01:26]} 20. Bd4 {[%emt 0:01:07]} Qc4 {[%emt 0:07:49]} 21. Qd2 {[%emt 0:01:00]} Nh5 {[%emt 0:01:26]} 22. Bxg7 {[%emt 0:03:16]} Kxg7 {[%emt 0:00:23]} 23. Nd4 {[%emt 0:04:24]} Nhf6 {[%emt 0:00:32]} 24. Nb3 {[%emt 0:02:55]} Nb6 {[%emt 0:02:23]} 25. Na5 {[%emt 0:00:54]} Qc7 {[%emt 0:00:30]} 26. Rf3 {[%emt 0:03:43]} Nc4 {[%emt 0:01:16]} 27. Nxc4 {[%emt 0:00:04]} Qxc4 {[%emt 0:00:06]} 28. Rd3 {[%emt 0:01:49]} Qc7 {[%emt 0:02:42]} 29. f5 {[%emt 0:01:12]} Qd7 {[%emt 0:03:57]} 30. Rf1 {[%emt 0:01:24]} Rc4 {[%emt 0:00:20]} 31. Rh3 {[%emt 0:02:57]} h5 {[%emt 0:01:50]} 32. Qd3 {[%emt 0:01:50]} Rec8 {[%emt 0:05:45]} 33. fxg6 {[%emt 0:00:48]} fxg6 {[%emt 0:00:16]} 34. Rg3 {[%emt 0:00:02]} Rg4 {[%emt 0:04:12]} 35. Re3 {[%emt 0:00:18]} Rf8 {[%emt 0:01:38]} 36. Qe2 {[%emt 0:01:09]} Rf7 {[%emt 0:00:53]} 37. Re1 {[%emt 0:00:14]} Kf8 {[%emt 0:02:07]} 38. Re6 {[%emt 0:01:37]} Rf4 {[%emt 0:04:28]} 39. g3 {[%emt 0:00:58]} Rf5 {[%emt 0:00:41]} 40. Qd2 {[%emt 0:00:32]} Kg7 {[%emt 0:00:54]} 41. R1e2 {[%emt 0:00:40]} Ng4 {[%emt 0:03:52]} 42. Ne4 {[%emt 0:00:11]} Ne5 {[%emt 0:01:27]} 43. Kg2 {[%emt 0:00:38]} Qb5 {[%emt 0:03:01]} 44. b3 {[%emt 0:00:05]} Ng4 {[%emt 0:05:11]} 45. Nc3 {[%emt 0:00:56]} Qd7 {[%emt 0:02:53]} 46. Qd4+ {[%emt 0:00:09]} Re5 {[%emt 0:01:12]} 47. h3 {[%emt 0:00:42]} Nf6 {[%emt 0:01:11]} 48. R2xe5 {[%emt 0:00:10]} dxe5 {[%emt 0:00:02]} 49. Qxe5 {[%emt 0:00:07]} Kf8 {[%emt 0:01:03]} 50. Qd4 {[%emt 0:01:18]} Qc8 {[%emt 0:02:04]} 51. Re2 {[%emt 0:00:31]} Qf5 {[%emt 0:00:39]} 52. Rf2 {[%emt 0:00:19]} Qg5 {[%emt 0:00:24]} 53. h4 {[%emt 0:00:36]} Qc1 {[%emt 0:01:11]} 54. d6 {[%emt 0:00:26]} exd6 {[%emt 0:01:53]} 55. Rxf6 {[%emt 0:00:12]} Qxc2+ {[%emt 0:00:01]} 56. Qf2 {[%emt 0:00:35]} 1-0

[Event "4th EFE Metz Festival-WIM"]
[Site "Metz"]
[Date "2018.07.26"]
[Round "5"]
[White "Terbe, Julianna"]
[Black "Afraoui, Anaelle"]
[Result "1-0"]
[ECO "A45"]
[WhiteElo "2238"]
[BlackElo "2056"]
[Annotator "NA"]
[PlyCount "73"]
[EventDate "2018.07.22"]
[EventType "tourn"]
[EventCountry "FRA"]
[SourceTitle "playchess.com"]
[Source "ChessBase"]
[SourceQuality "1"]
[TimeControl "5400+30"]

1. d4 {[%emt 0:00:00]} Nf6 {[%emt 0:00:09]} 2. Bf4 {[%emt 0:00:00]} g6 {[%emt 0:00:20]} 3. e3 {[%emt 0:00:00]} Bg7 {[%emt 0:00:10]} 4. Nf3 {[%emt 0:00:04]} O-O {[%emt 0:00:13]} 5. Be2 {[%emt 0:00:06]} d6 {[%emt 0:00:22]} 6. h3 {[%emt 0:00:05]} Nbd7 {[%emt 0:03:02]} 7. O-O {[%emt 0:00:21]} b6 {[%emt 0:03:14]} 8. a4 {[%emt 0:00:18]} c5 {[%emt 0:03:55]} 9. c3 {[%emt 0:00:22]} Bb7 {[%emt 0:00:31]} 10. Nbd2 {[%emt 0:03:22]} a6 {[%emt 0:05:25]} 11. Bh2 {[%emt 0:00:05]} Re8 {[%emt 0:06:30]} 12. Qc2 {[%emt 0:10:56]} Rc8 {[%emt 0:04:33]} 13. Rfe1 {[%emt 0:01:04]} cxd4 {[%emt 0:10:25]} 14. exd4 {[%emt 0:00:42]} Nd5 {[%emt 0:04:01]} 15. Qb3 {[%emt 0:03:37]} Bh6 {[%emt 0:05:11]} 16. Bc4 {[%emt 0:05:37]} N7f6 {[%emt 0:02:40]} 17. g4 {[%emt 0:01:54]} Bxd2 {[%emt 0:07:04]} 18. Nxd2 {[%emt 0:00:09]} e6 {[%emt 0:00:08]} 19. f3 {[%emt 0:04:41]} h5 {[%emt 0:02:27]} 20. Bf1 {[%emt 0:01:24]} Kg7 {[%emt 0:07:07]} 21. Nc4 {[%emt 0:01:50]} Rxc4 {[%emt 0:11:25]} 22. Qxc4 {[%emt 0:01:48]} hxg4 {[%emt 0:00:08]} 23. hxg4 {[%emt 0:01:41]} Rh8 {[%emt 0:01:06]} 24. Qe2 {[%emt 0:03:08]} Nh7 {[%emt 0:02:10]} 25. Bg3 {[%emt 0:04:54]} Ng5 {[%emt 0:02:07]} 26. Bg2 {[%emt 0:01:32]} Nh3+ {[%emt 0:00:58]} 27. Bxh3 {[%emt 0:00:13]} Rxh3 {[%emt 0:00:07]} 28. Qg2 {[%emt 0:00:25]} Rh7 {[%emt 0:01:03]} 29. Kf2 {[%emt 0:01:18]} Nf6 {[%emt 0:01:51]} 30. Bf4 {[%emt 0:06:17]} Nd5 {[%emt 0:05:39]} 31. Bd2 {[%emt 0:00:34]} Qf6 {[%emt 0:03:01]} 32. Rh1 {[%emt 0:02:14]} Rxh1 {[%emt 0:03:56]} 33. Rxh1 {[%emt 0:00:10]} Nf4 {[%emt 0:03:56]} 34. Qh2 {[%emt 0:06:51]} Nd3+ {[%emt 0:00:33]} 35. Kg1 {[%emt 0:00:04]} Kg8 {[%emt 0:00:28]} 36. Bg5 {[%emt 0:00:36]} Qg7 {[%emt 0:01:04]} 37. Qxd6 {[%emt 0:00:08]} 1-0

[Event "4th EFE Metz Festival-WIM"]
[Site "Metz"]
[Date "2018.07.26"]
[Round "5"]
[White "Terbe, Zsuzsanna"]
[Black "Soubirou, Oriane"]
[Result "0-1"]
[ECO "C00"]
[WhiteElo "2178"]
[BlackElo "2105"]
[Annotator "NA"]
[PlyCount "96"]
[EventDate "2018.07.22"]
[EventType "tourn"]
[EventCountry "FRA"]
[SourceTitle "playchess.com"]
[Source "ChessBase"]
[SourceQuality "1"]
[TimeControl "5400+30"]

1. e4 {[%emt 0:00:00]} a6 {[%emt 0:25:09]} 2. d4 {[%emt 0:00:08]} e6 {[%emt 0:00:05]} 3. Nf3 {[%emt 0:00:25]} b5 {[%emt 0:00:10]} 4. Bd3 {[%emt 0:00:34]} Bb7 {[%emt 0:00:07]} 5. O-O {[%emt 0:00:23]} Nf6 {[%emt 0:00:40]} 6. Re1 {[%emt 0:01:17]} d5 {[%emt 0:01:05]} 7. e5 {[%emt 0:01:39]} Nfd7 {[%emt 0:01:56]} 8. Ng5 {[%emt 0:03:48]} g6 {[%emt 0:00:14]} 9. Qg4 {[%emt 0:00:45]} Qe7 {[%emt 0:06:05]} 10. a4 {[%emt 0:01:22]} Nc6 {[%emt 0:12:47]} 11. c3 {[%emt 0:10:11]} b4 {[%emt 0:10:03]} 12. c4 {[%emt 0:14:40]} dxc4 {[%emt 0:06:12]} 13. Bxc4 {[%emt 0:00:30]} Nb6 {[%emt 0:05:00]} 14. Ne4 {[%emt 0:17:04]} O-O-O {[%emt 0:02:11]} 15. Bg5 {[%emt 0:04:35]} Qd7 {[%emt 0:00:17]} 16. Bxd8 {[%emt 0:01:20]} Qxd8 {[%emt 0:00:08]} 17. Nbd2 {[%emt 0:03:52]} Qxd4 {[%emt 0:09:21]} 18. Qe2 {[%emt 0:01:35]} Nxc4 {[%emt 0:02:22]} 19. Nxc4 {[%emt 0:06:17]} Nxe5 {[%emt 0:00:33]} 20. Nxe5 {[%emt 0:05:22]} Qxe5 {[%emt 0:00:16]} 21. Qc4 {[%emt 0:00:22]} Qd5 {[%emt 0:02:34]} 22. Qxd5 {[%emt 0:02:29]} Bxd5 {[%emt 0:00:11]} 23. Ng5 {[%emt 0:01:15]} Bc5 {[%emt 0:00:44]} 24. Rac1 {[%emt 0:00:32]} Bd4 {[%emt 0:00:49]} 25. Re2 {[%emt 0:00:22]} e5 {[%emt 0:02:25]} 26. Nf3 {[%emt 0:01:30]} Bxf3 {[%emt 0:00:45]} 27. gxf3 {[%emt 0:00:05]} Kb7 {[%emt 0:03:36]} 28. b3 {[%emt 0:00:21]} f5 {[%emt 0:01:32]} 29. Kg2 {[%emt 0:01:38]} c5 {[%emt 0:00:41]} 30. Rd2 {[%emt 0:01:15]} Re8 {[%emt 0:01:49]} 31. Rc4 {[%emt 0:00:53]} a5 {[%emt 0:00:38]} 32. h3 {[%emt 0:00:48]} Kb6 {[%emt 0:00:37]} 33. Rc1 {[%emt 0:02:40]} Re6 {[%emt 0:02:19]} 34. Rc4 {[%emt 0:01:02]} Rd6 {[%emt 0:01:29]} 35. Kf1 {[%emt 0:02:08]} Kc6 {[%emt 0:01:16]} 36. Ke2 {[%emt 0:00:47]} Kd5 {[%emt 0:00:21]} 37. Kf1 {[%emt 0:03:48]} Re6 {[%emt 0:00:26]} 38. Kg2 {[%emt 0:00:37]} g5 {[%emt 0:01:28]} 39. Re2 {[%emt 0:00:34]} Rh6 {[%emt 0:00:46]} 40. Rc1 {[%emt 0:03:51]} Rh4 {[%emt 0:00:20]} 41. Kg3 {[%emt 0:05:57]} Bc3 {[%emt 0:00:45]} 42. Rd1+ {[%emt 0:00:19]} Rd4 {[%emt 0:00:29]} 43. Rb1 {[%emt 0:00:13]} c4 {[%emt 0:00:28]} 44. bxc4+ {[%emt 0:00:14]} Rxc4 {[%emt 0:00:10]} 45. Rb3 {[%emt 0:00:11]} Bd4 {[%emt 0:00:32]} 46. Rd2 {[%emt 0:00:37]} Rc3 {[%emt 0:00:14]} 47. Rb1 {[%emt 0:00:04]} Kc4 {[%emt 0:00:24]} 48. Rdd1 {[%emt 0:00:59]} b3 {[%emt 0:00:40]} 0-1